fUST/lending_fUST_20260120
["ID","MTS","AMOUNT","RATE_DAILY","PERIOD"]
[402726305,1768845038604,-500.0,0.00013171,2]
[402726307,1768845038613,-500.0,0.00013171,2]
[402726309,1768845038624,-500.0,0.00013171,2]
[402726311,1768845038633,-500.0,0.00013171,2]
[402726313,1768845038642,-500.0,0.00013171,2]
[402726315,1768845038651,-500.0,0.00013171,2]
[402726317,1768845038660,-210.15332587,0.00013181,2]
[402726319,1768845038669,-589.2946182,0.00013181,2]
[402726321,1768845038678,-50000.0,0.00013182,2]
[402726322,1768845038687,-709711.24454262,0.00013183,2]
[402726338,1768845038819,-320.42045996,0.00013183,2]
[402726394,1768845046176,-1687.92387263,0.00013183,2]
[402726395,1768845107208,237.01,9.284e-05,2]
[402726396,1768845186871,234.0,8.775e-05,2]
[402726397,1768845187293,468.0,9.572e-05,2]
[402726399,1768845275477,225.06,8.396e-05,2]
[402726400,1768845275613,450.13,9.159e-05,2]
[402726401,1768845290845,-452.31812647,9.923e-05,2]
[402726402,1768845355883,210.71,9.092e-05,2]
[402726403,1768845435215,244.82,9.09e-05,2]
[402726404,1768845440803,-436.39762998,9.916e-05,2]
[402726405,1768845455790,-301.53317516,9.817e-05,2]
[402726406,1768845457903,-236.36606741,9.817e-05,2]
[402726407,1768845459968,-156.17586165,9.817e-05,2]
[402726408,1768845463806,-216.79736269,9.817e-05,2]
[402726409,1768845465918,-328.09031649,9.817e-05,2]
[402726410,1768845468177,-212.95220756,9.817e-05,2]
[402726411,1768845470207,-312.34980593,9.817e-05,2]
[402726412,1768845472795,-295.77226088,9.817e-05,2]
[402726413,1768845475437,-230.25916372,9.817e-05,2]
[402726414,1768845476885,-263.18293852,9.817e-05,2]
[402726415,1768845479097,-222.17185254,9.817e-05,2]
[402726416,1768845481114,-203.77000003,9.817e-05,2]
[402726417,1768845483097,-829.28356509,9.817e-05,2]
[402726418,1768845485670,-164.73874826,9.817e-05,2]
[402726419,1768845487694,-506.75163321,9.817e-05,2]
[402726420,1768845514555,238.97,9.095e-05,2]
[402726421,1768845593879,244.36,9.2e-05,2]
[402726422,1768845635813,5000.0,9.679e-05,2]
[402726423,1768845659061,5000.0,9.679e-05,2]
[402726424,1768845667431,1907.13595564,9.679e-05,2]
[402726425,1768845673169,306.12,9.135e-05,2]
[402726426,1768845682529,2786.75404436,9.679e-05,2]
[402726427,1768845682551,2213.24595564,9.679e-05,2]
[402726428,1768845705269,5000.0,9.679e-05,2]
[402726430,1768845727484,2786.76404436,9.679e-05,2]
[402726431,1768845727508,2213.23595564,9.679e-05,2]
[402726432,1768845750270,5000.0,9.679e-05,2]
[402726433,1768845752990,363.07,9.14e-05,2]
[402726434,1768845756415,-275.95759361,9.87e-05,2]
[402726435,1768845756443,-55.52450285,9.971e-05,2]
[402726436,1768845758070,331.48209646,9.679e-05,2]
[402726437,1768845760370,-177.9363484,9.971e-05,2]
[402726438,1768845763162,-284.64728803,9.971e-05,2]
[402726439,1768845781068,462.58363643,9.679e-05,2]
[402726440,1768845800865,-159.23779811,9.871e-05,2]
[402726441,1768845805141,-300.0,9.871e-05,2]
[402726442,1768845812254,-168.66691581,9.871e-05,2]
[402726443,1768845824183,627.90471392,9.679e-05,2]
[402726444,1768845832275,351.85,9.078e-05,2]
[402726445,1768845903135,649.88359755,8.931e-05,2]
[402726446,1768845903158,407.72477627,8.931e-05,2]
[402726447,1768845911755,349.75,9.059e-05,2]
[402726448,1768845966262,5000.0,9.679e-05,2]
[402726449,1768845991272,347.64,7.972e-05,2]
[402726450,1768845991689,695.28,8.697e-05,2]
[402726451,1768845992097,1042.91,9.422e-05,2]
[402726460,1768846069712,323.4,8.025e-05,2]
[402726461,1768846070094,646.81,8.755e-05,2]
[402726462,1768846070519,970.21,9.484e-05,2]
[402726463,1768846080388,170.9,2.997e-05,2]
[402726464,1768846149359,45.38522373,8.62e-05,2]
[402726465,1768846149390,255.60477627,8.62e-05,2]
[402726466,1768846149766,601.99,9.404e-05,2]
[402726467,1768846181666,5000.0,9.679e-05,2]
[402726468,1768846203866,5000.0,9.679e-05,2]
[402726470,1768846226313,0.01,9.679e-05,2]
[402726471,1768846226341,4999.99,9.679e-05,2]
[402726472,1768846228952,291.76,8.64e-05,2]
[402726473,1768846229387,583.51,9.425e-05,2]
[402726491,1768846232269,-270.43844174,9.838e-05,2]
[402726492,1768846232278,-875.27,0.00010211,2]
[402726493,1768846232288,-1167.02,0.00010996,2]
[402726494,1768846232297,-1458.78,0.00011782,2]
[402726495,1768846232306,-319.11736126,0.00011838,2]
[402726497,1768846232316,-178.0,0.00011852,2]
[402726500,1768846232330,-417.0,0.00011852,2]
[402726502,1768846232339,-300.0,0.00011886,2]
[402726504,1768846232348,-300.0,0.00011886,2]
[402726506,1768846232358,-1750.53,0.00012567,2]
[402726507,1768846232369,-164.761643,0.00012667,2]
[402726508,1768846232378,-2135.51738478,0.00013032,2]
[402726509,1768846232394,-980.66419338,0.00013032,2]
[402726510,1768846232403,-151.0,0.00013075,2]
[402726511,1768846232412,-151.0,0.00013075,2]
[402726512,1768846232422,-151.0,0.00013075,2]
[402726513,1768846232431,-151.0,0.00013075,2]
[402726514,1768846232440,-151.0,0.00013075,2]
[402726515,1768846232449,-151.0,0.00013075,2]
[402726516,1768846232459,-151.0,0.00013075,2]
[402726517,1768846232469,-151.0,0.00013075,2]
[402726518,1768846232478,-151.0,0.00013075,2]
[402726519,1768846232488,-151.0,0.00013075,2]
[402726520,1768846232497,-151.0,0.00013075,2]
[402726521,1768846232507,-412.50623274,0.00013082,2]
[402726522,1768846232516,-152124.37885382,0.00013083,2]
[402726523,1768846232528,-18940.38911997,0.00013083,2]
[402726555,1768846238376,-3016.02576153,0.00013083,2]
[402726681,1768846240814,-3e-08,0.00013083,2]
[402726705,1768846306251,335.55,8.751e-05,2]
[402726706,1768846306695,671.1,9.546e-05,2]
[402726707,1768846351829,-1000.0,0.00027,120]
[402726708,1768846351877,-500.0,0.00027396,120]
[402726709,1768846351931,-1500.0,0.00027396,120]
[402726710,1768846351975,-1500.0,0.00027396,120]
[402726711,1768846352020,-1500.0,0.00027396,120]
[402726712,1768846352064,-1500.0,0.00027396,120]
[402726713,1768846352105,-1500.0,0.00027396,120]
[402726714,1768846352146,-1500.0,0.00027396,120]
[402726715,1768846352184,-1500.0,0.00027396,120]
[402726716,1768846352226,-1500.0,0.00027396,120]
[402726717,1768846352268,-1500.0,0.00027396,120]
[402726718,1768846352310,-1500.0,0.00027396,120]
[402726719,1768846352352,-1500.0,0.00027396,120]
[402726720,1768846352395,-1500.0,0.00027396,120]
[402726721,1768846352435,-1500.0,0.00027396,120]
[402726722,1768846352470,-1500.0,0.00027396,120]
[402726723,1768846352504,-1500.0,0.00027396,120]
[402726724,1768846352539,-1500.0,0.00027396,120]
[402726725,1768846352573,-1500.0,0.00027396,120]
[402726726,1768846352872,-1500.0,0.00027396,120]
[402726727,1768846352911,-1500.0,0.00027396,120]
[402726728,1768846352949,-1500.0,0.00027396,120]
[402726729,1768846352985,-1500.0,0.00027396,120]
[402726730,1768846353021,-1500.0,0.00027396,120]
[402726731,1768846353057,-1500.0,0.00027396,120]
[402726732,1768846353095,-1500.0,0.00027396,120]
[402726733,1768846353130,-1500.0,0.00027396,120]
[402726734,1768846353169,-1500.0,0.00027396,120]
[402726735,1768846353209,-1500.0,0.00027396,120]
[402726736,1768846353246,-1500.0,0.00027396,120]
[402726737,1768846353283,-1500.0,0.00027396,120]
[402726738,1768846353321,-1500.0,0.00027396,120]
[402726739,1768846353357,-1500.0,0.00027396,120]
[402726740,1768846353398,-1500.0,0.00027396,120]
[402726741,1768846353438,-1500.0,0.00027396,120]
[402726742,1768846353477,-1500.0,0.00027396,120]
[402726743,1768846353512,-1500.0,0.00027396,120]
[402726744,1768846353554,-1500.0,0.00027396,120]
[402726745,1768846353589,-1500.0,0.00027396,120]
[402726746,1768846353624,-1500.0,0.00027396,120]
[402726747,1768846353659,-1500.0,0.00027396,120]
[402726748,1768846353693,-1500.0,0.00027396,120]
[402726749,1768846353729,-1500.0,0.00027396,120]
[402726750,1768846353768,-1500.0,0.00027396,120]
[402726751,1768846353811,-1500.0,0.00027396,120]
[402726752,1768846353857,-1500.0,0.00027396,120]
[402726753,1768846353901,-1500.0,0.00027396,120]
[402726754,1768846353944,-1500.0,0.00027396,120]
[402726755,1768846353987,-1500.0,0.00027396,120]
[402726756,1768846354029,-1500.0,0.00027396,120]
[402726757,1768846354070,-1500.0,0.00027396,120]
[402726758,1768846354112,-1500.0,0.00027396,120]
[402726759,1768846354156,-1500.0,0.00027396,120]
[402726760,1768846354198,-1500.0,0.00027396,120]
[402726761,1768846354253,-1500.0,0.00027396,120]
[402726762,1768846354303,-1500.0,0.00027396,120]
[402726763,1768846354351,-1500.0,0.00027396,120]
[402726764,1768846354397,-1500.0,0.00027396,120]
[402726765,1768846354443,-1500.0,0.00027396,120]
[402726766,1768846354484,-1500.0,0.00027396,120]
[402726767,1768846354523,-1500.0,0.00027396,120]
[402726768,1768846354562,-1500.0,0.00027396,120]
[402726769,1768846354603,-1500.0,0.00027396,120]
[402726770,1768846354643,-1500.0,0.00027396,120]
[402726771,1768846354681,-1500.0,0.00027396,120]
[402726772,1768846354723,-1500.0,0.00027396,120]
[402726773,1768846354760,-1500.0,0.00027396,120]
[402726774,1768846354798,-1500.0,0.00027396,120]
[402726775,1768846354835,-1500.0,0.00027396,120]
[402726776,1768846354872,-1121.10367158,0.00027396,120]
[402726777,1768846354909,-802811.57694353,0.00027397,120]
[402726778,1768846354950,-500.47160198,0.00027397,120]
[402726779,1768846354989,-500.0,0.00027397,120]
[402726780,1768846355032,-527.31307078,0.00027397,120]
[402726781,1768846355075,-500.0,0.00027397,120]
[402726782,1768846355115,-320.16,0.00027397,120]
[402726783,1768846355154,-500.84156234,0.00027397,120]
[402726784,1768846355194,-419.63995011,0.00027397,120]
[402726785,1768846355232,-503.6951527,0.00027397,120]
[402726786,1768846355272,-506.27876809,0.00027397,120]
[402726787,1768846355308,-501.27243415,0.00027397,120]
[402726788,1768846355345,-500.65431393,0.00027397,120]
[402726789,1768846355384,-500.0,0.00027397,120]
[402726790,1768846355422,-500.0,0.00027397,120]
[402726791,1768846355459,-500.0,0.00027397,120]
[402726792,1768846355494,-295.07,0.00027397,120]
[402726793,1768846355532,-500.0,0.00027397,120]
[402726794,1768846355567,-195.33,0.00027397,120]
[402726795,1768846355602,-220.14045565,0.00027397,120]
[402726796,1768846355640,-527.47,0.00027397,120]
[402726797,1768846355677,-500.0,0.00027397,120]
[402726798,1768846355715,-500.0,0.00027397,120]
[402726799,1768846355751,-500.0,0.00027397,120]
[402726800,1768846355786,-500.0,0.00027397,120]
[402726801,1768846355824,-500.0,0.00027397,120]
[402726802,1768846355858,-500.0,0.00027397,120]
[402726803,1768846355894,-500.0,0.00027397,120]
[402726804,1768846355930,-500.0,0.00027397,120]
[402726805,1768846355967,-500.0,0.00027397,120]
[402726806,1768846356003,-500.0,0.00027397,120]
[402726807,1768846356040,-500.0,0.00027397,120]
[402726808,1768846356078,-500.0,0.00027397,120]
[402726809,1768846356114,-500.0,0.00027397,120]
[402726810,1768846356150,-500.0,0.00027397,120]
[402726811,1768846356186,-500.0,0.00027397,120]
[402726812,1768846356222,-510.998017,0.00027397,120]
[402726813,1768846356259,-500.0,0.00027397,120]
[402726814,1768846356297,-500.0,0.00027397,120]
[402726815,1768846356334,-392.35,0.00027397,120]
[402726816,1768846356373,-222.92460277,0.00027397,120]
[402726817,1768846356545,-354.9109568,0.00027397,120]
[402726818,1768846356586,-500.0,0.00027397,120]
[402726819,1768846356623,-500.0,0.00027397,120]
[402726820,1768846356659,-500.0,0.00027397,120]
[402726821,1768846356695,-500.0,0.00027397,120]
[402726822,1768846356732,-500.0,0.00027397,120]
[402726823,1768846356768,-500.0,0.00027397,120]
[402726824,1768846356803,-500.0,0.00027397,120]
[402726825,1768846356837,-500.0,0.00027397,120]
[402726826,1768846356872,-500.0,0.00027397,120]
[402726827,1768846356906,-399.58,0.00027397,120]
[402726828,1768846356947,-500.0,0.00027397,120]
[402726829,1768846356982,-500.0,0.00027397,120]
[402726830,1768846357019,-500.0,0.00027397,120]
[402726831,1768846357056,-500.0,0.00027397,120]
[402726832,1768846357093,-226.28,0.00027397,120]
[402726833,1768846357132,-567.53,0.00027397,120]
[402726834,1768846357167,-500.0,0.00027397,120]
[402726835,1768846360187,500.0,0.00027397,120]
[402726836,1768846360438,500.0,0.00027397,120]
[402726837,1768846360665,500.0,0.00027397,120]
[402726838,1768846360910,500.0,0.00027397,120]
[402726839,1768846361175,500.0,0.00027397,120]
[402726840,1768846361425,500.0,0.00027397,120]
[402726841,1768846361659,500.0,0.00027397,120]
[402726842,1768846361900,500.0,0.00027397,120]
[402726843,1768846362127,500.0,0.00027397,120]
[402726844,1768846362373,500.0,0.00027397,120]
[402726845,1768846362679,500.0,0.00027397,120]
[402726846,1768846362915,500.0,0.00027397,120]
[402726847,1768846363191,500.0,0.00027397,120]
[402726848,1768846363458,297.13,0.00027397,120]
[402726849,1768846369266,501.55163436,0.00027397,120]
[402726850,1768846374180,503.08755538,0.00027397,120]
[402726851,1768846376690,152.99622449,0.00027397,120]
[402726852,1768846380448,500.0,0.00027397,120]
[402726853,1768846380683,500.0,0.00027397,120]
[402726854,1768846380916,500.0,0.00027397,120]
[402726855,1768846381185,500.0,0.00027397,120]
[402726856,1768846381576,536.91,0.00027397,120]
[402726857,1768846383017,507.52983309,0.00027397,120]
[402726858,1768846386353,322.74,8.278e-05,2]
[402726859,1768846386753,645.47,9.03e-05,2]
[402726860,1768846388267,500.0,0.00027397,120]
[402726861,1768846397366,500.0,0.00027397,120]
[402726862,1768846397618,500.0,0.00027397,120]
[402726863,1768846397887,500.0,0.00027397,120]
[402726864,1768846398255,500.0,0.00027397,120]
[402726865,1768846398390,500.0,0.00027397,120]
[402726866,1768846398627,500.0,0.00027397,120]
[402726867,1768846398864,500.0,0.00027397,120]
[402726868,1768846399089,500.0,0.00027397,120]
[402726869,1768846399311,500.0,0.00027397,120]
[402726870,1768846399572,500.0,0.00027397,120]
[402726871,1768846399813,500.0,0.00027397,120]
[402726872,1768846400050,500.0,0.00027397,120]
[402726873,1768846400283,328.11367574,0.00027397,120]
[402726874,1768846406335,500.0,0.00027397,120]
[402726875,1768846408532,255.83,0.00027397,120]
[402726876,1768846417220,285.00672675,0.00027397,120]
[402726877,1768846417959,280.94769815,0.00027397,120]
[402726878,1768846421127,157.95085085,0.00023449,120]
[402726879,1768846430847,500.0,0.00027397,120]
[402726880,1768846431085,642.06749187,0.00027397,120]
[402726881,1768846442344,2149.89,9.679e-05,2]
[402726882,1768846442377,2850.11,9.679e-05,2]
[402726883,1768846451593,163.11732391,0.00027397,120]
[402726884,1768846459566,168.3895598,0.00027397,120]
[402726885,1768846465552,310.41,8.733e-05,2]
[402726886,1768846465981,620.83,9.527e-05,2]
[402726887,1768846469269,271.93960017,0.00027397,120]
[402726889,1768846504654,160.4969878,0.00027397,120]
[402726890,1768846544629,298.56,7.782e-05,2]
[402726891,1768846545026,597.12,8.49e-05,2]
[402726892,1768846545436,895.69,9.197e-05,2]
[402726893,1768846564957,500.0,0.00027397,120]
[402726894,1768846565198,500.0,0.00027397,120]
[402726895,1768846565480,500.0,0.00027397,120]
[402726896,1768846565719,500.0,0.00027397,120]
[402726897,1768846565968,486.72,0.00027397,120]
[402726898,1768846566540,704.71,0.00027397,120]
[402726899,1768846566796,704.71,0.00027397,120]
[402726900,1768846567032,704.71,0.00027397,120]
[402726901,1768846567269,704.71,0.00027397,120]
[402726902,1768846567516,704.71,0.00027397,120]
[402726903,1768846567812,704.71,0.00027397,120]
[402726904,1768846568054,704.71,0.00027397,120]
[402726905,1768846568384,704.71,0.00027397,120]
[402726906,1768846568622,704.71,0.00027397,120]
[402726907,1768846568856,704.71,0.00027397,120]
[402726908,1768846569131,704.71,0.00027397,120]
[402726909,1768846569394,704.71,0.00027397,120]
[402726910,1768846569633,704.71,0.00027397,120]
[402726911,1768846569876,704.71,0.00027397,120]
[402726912,1768846570128,704.71,0.00027397,120]
[402726913,1768846570366,704.71,0.00027397,120]
[402726914,1768846570606,704.71,0.00027397,120]
[402726915,1768846570870,704.71,0.00027397,120]
[402726916,1768846571107,704.71,0.00027397,120]
[402726917,1768846571340,704.71,0.00027397,120]
[402726918,1768846571606,704.71,0.00027397,120]
[402726919,1768846571823,704.71,0.00027397,120]
[402726920,1768846572142,704.71,0.00027397,120]
[402726921,1768846572586,704.93,0.00027397,120]
[402726922,1768846574314,311.04511253,0.00027397,120]
[402726923,1768846615908,500.50671294,0.00027397,120]
[402726924,1768846623348,287.94,7.196e-05,2]
[402726925,1768846623748,575.88,7.85e-05,2]
[402726926,1768846624162,863.82,8.505e-05,2]
[402726927,1768846624582,1151.76,9.159e-05,2]
[402726928,1768846656108,1001.79077581,0.00027397,120]
[402726929,1768846660113,1547.89,9.679e-05,2]
[402726930,1768846660139,3452.11,9.679e-05,2]
[402726931,1768846682853,5000.0,9.679e-05,2]
[402726932,1768846703316,259.12,7.357e-05,2]
[402726933,1768846703733,518.23,8.026e-05,2]
[402726934,1768846704672,770.55,8.695e-05,2]
[402726935,1768846704697,6.8,8.695e-05,2]
[402726936,1768846705083,1036.46,9.364e-05,2]
[402726937,1768846785494,235.48,7.123e-05,2]
[402726938,1768846785881,470.96,7.77e-05,2]
[402726939,1768846786284,706.45,8.418e-05,2]
[402726940,1768846786730,941.93,9.065e-05,2]
[402726941,1768846790872,-588.7026725,9.713e-05,2]
[402726942,1768846795180,-295.29514961,9.713e-05,2]
[402726943,1768846805967,511.42,0.00027397,120]
[402726944,1768846807001,-293.41217789,9.713e-05,2]
[402726945,1768846807023,-17.75782211,9.713e-05,2]
[402726946,1768846862438,202.43,7.145e-05,2]
[402726947,1768846862847,404.87,7.794e-05,2]
[402726948,1768846863245,607.3,8.444e-05,2]
[402726949,1768846863637,809.74,9.093e-05,2]
[402726950,1768846892844,169.11245151,0.00027397,120]
[402726951,1768846895220,524.57743511,0.00027397,120]
[402726952,1768846898218,4577.59,9.679e-05,2]
[402726953,1768846898246,422.41,9.679e-05,2]
[402726954,1768846917594,504.32628805,0.00027397,120]
[402726955,1768846920886,5000.0,9.679e-05,2]
[402726956,1768846921038,505.35430273,0.00027397,120]
[402726957,1768846933884,542.76368036,0.00027397,120]
[402726958,1768846941253,181.39,7.149e-05,2]
[402726959,1768846941684,362.77,7.799e-05,2]
[402726960,1768846942086,544.16,8.449e-05,2]
[402726961,1768846942491,725.54,9.099e-05,2]
[402726962,1768846943651,2763.74,9.679e-05,2]
[402726963,1768846943673,2236.26,9.679e-05,2]
[402726964,1768846947309,199.50432285,0.00027397,120]
[402726965,1768846966025,5000.0,9.679e-05,2]
[402726966,1768846988907,2763.75,9.679e-05,2]
[402726967,1768846988933,2236.25,9.679e-05,2]
[402726968,1768847011663,5000.0,9.679e-05,2]
[402726969,1768847019073,160.51,7.134e-05,2]
[402726970,1768847019477,321.02,7.782e-05,2]
[402726971,1768847019886,481.53,8.431e-05,2]
[402726972,1768847020302,642.05,9.079e-05,2]
[402726973,1768847034821,1158.65,9.679e-05,2]
[402726974,1768847034844,3841.35,9.679e-05,2]
[402726975,1768847058063,5000.0,9.679e-05,2]
[402726976,1768847081165,1158.66,9.679e-05,2]
[402726977,1768847081189,3841.34,9.679e-05,2]
[402726978,1768847098347,238.64,7.139e-05,2]
[402726979,1768847098744,477.28,7.788e-05,2]
[402726980,1768847099153,715.93,8.437e-05,2]
[402726981,1768847099580,954.57,9.086e-05,2]
[402726982,1768847103290,3772.25,9.679e-05,2]
[402726984,1768847182972,297.29,7.197e-05,2]
[402726985,1768847183367,594.58,7.851e-05,2]
[402726986,1768847183778,891.87,8.505e-05,2]
[402726987,1768847184203,1189.16,9.16e-05,2]
[402726988,1768847209389,507.5672722,0.00027397,120]
[402726990,1768847261386,279.05,7.223e-05,2]
[402726991,1768847261804,558.09,7.879e-05,2]
[402726992,1768847262214,837.14,8.536e-05,2]
[402726993,1768847262575,1116.19,9.192e-05,2]
[402726994,1768847295657,4236.64,9.675e-05,2]
[402726995,1768847295686,763.36,9.675e-05,2]
[402726996,1768847304933,5018.42342191,5e-05,2]
[402726997,1768847310748,2039.54101934,9.675e-05,2]
[402727003,1768847319035,2178.68555875,9.675e-05,2]
[402727004,1768847319065,2821.31444125,9.675e-05,2]
[402727005,1768847340516,364.81,7.019e-05,2]
[402727006,1768847340905,729.62,7.657e-05,2]
[402727007,1768847341222,5000.0,9.675e-05,2]
[402727008,1768847341317,1084.26555875,8.295e-05,2]
[402727009,1768847341343,10.16444125,8.295e-05,2]
[402727010,1768847341818,1459.24,8.933e-05,2]
[402727011,1768847342197,1824.05,9.571e-05,2]
[402727012,1768847357004,512.64112978,9.675e-05,2]
[402727013,1768847364624,5000.0,9.675e-05,2]
[402727014,1768847379697,152.44732311,9.675e-05,2]
[402727015,1768847387463,1041.46710586,9.675e-05,2]
[402727016,1768847387485,3958.53289414,9.675e-05,2]
[402727017,1768847410289,5000.0,9.675e-05,2]
[402727018,1768847426061,295.16,7.513e-05,2]
[402727019,1768847426461,590.33,8.196e-05,2]
[402727020,1768847426875,155.98710586,8.879e-05,2]
[402727021,1768847426899,729.50289414,8.879e-05,2]
[402727022,1768847427282,1180.65,9.562e-05,2]
[402727050,1768847432354,-286.93135244,9.696e-05,2]
[402727051,1768847432364,-556.0,9.696e-05,2]
[402727052,1768847432374,-157.06864756,9.999e-05,2]
[402727053,1768847432408,-1042.93135244,9.999e-05,2]
[402727054,1768847432418,-300.0,9.999e-05,2]
[402727055,1768847432429,-5154.66727389,0.0001,2]
[402727056,1768847432439,-1000.99943161,0.0001,2]
[402727057,1768847432448,-1475.82,0.00010245,2]
[402727058,1768847432458,-424.87750028,0.00010618,2]
[402727059,1768847432467,-1770.98,0.00010928,2]
[402727060,1768847432476,-300.0,0.00010999,2]
[402727061,1768847432486,-2066.15,0.00011611,2]
[402727063,1768847432495,-338.57899588,0.00011696,2]
[402727065,1768847432505,-500.0,0.00011775,2]
[402727067,1768847432514,-500.0,0.00011775,2]
[402727069,1768847432523,-500.0,0.00011775,2]
[402727071,1768847432532,-500.0,0.00011775,2]
[402727073,1768847432542,-500.0,0.00011775,2]
[402727075,1768847432552,-500.0,0.00011775,2]
[402727076,1768847432561,-500.0,0.00011775,2]
[402727077,1768847432570,-500.0,0.00011775,2]
[402727078,1768847432580,-500.0,0.00011775,2]
[402727079,1768847432590,-500.0,0.00011775,2]
[402727080,1768847432600,-500.0,0.00011775,2]
[402727081,1768847432609,-500.0,0.00011775,2]
[402727082,1768847432618,-500.0,0.00011775,2]
[402727083,1768847432628,-500.0,0.00011775,2]
[402727084,1768847432637,-500.0,0.00011775,2]
[402727085,1768847432647,-500.0,0.00011775,2]
[402727086,1768847432656,-353.51584329,0.00011775,2]
[402727087,1768847432665,-500.0,0.00011775,2]
[402727088,1768847432675,-500.0,0.00011775,2]
[402727089,1768847432686,-500.0,0.00011775,2]
[402727090,1768847432695,-500.0,0.00011775,2]
[402727091,1768847432704,-500.0,0.00011775,2]
[402727092,1768847432712,-500.0,0.00011775,2]
[402727093,1768847432722,-500.0,0.00011775,2]
[402727094,1768847432731,-500.0,0.00011775,2]
[402727095,1768847432740,-500.0,0.00011775,2]
[402727096,1768847432750,-500.0,0.00011775,2]
[402727097,1768847432758,-500.0,0.00011775,2]
[402727098,1768847432768,-500.0,0.00011775,2]
[402727099,1768847432777,-500.0,0.00011775,2]
[402727100,1768847432786,-500.0,0.00011775,2]
[402727101,1768847432796,-500.0,0.00011775,2]
[402727102,1768847432805,-500.0,0.00011775,2]
[402727103,1768847432814,-500.0,0.00011775,2]
[402727104,1768847432823,-500.0,0.00011775,2]
[402727105,1768847432833,-500.0,0.00011775,2]
[402727106,1768847432842,-500.0,0.00011775,2]
[402727107,1768847432851,-500.0,0.00011775,2]
[402727108,1768847432861,-500.0,0.00011775,2]
[402727109,1768847432870,-500.0,0.00011775,2]
[402727110,1768847432880,-500.0,0.00011775,2]
[402727111,1768847432897,-2150.738,0.00011815,2]
[402727112,1768847432909,-443.35043088,0.00011888,2]
[402727113,1768847432919,-500.0,0.00011888,2]
[402727114,1768847432929,-500.0,0.00011889,2]
[402727115,1768847432939,-500.0,0.00011889,2]
[402727116,1768847432949,-500.0,0.00012026,2]
[402727117,1768847432959,-500.0,0.00012026,2]
[402727118,1768847432968,-301.43930861,0.00012163,2]
[402727119,1768847432978,-500.0,0.00012163,2]
[402727120,1768847432987,-417.0,0.00012163,2]
[402727121,1768847432996,-178.0,0.00012163,2]
[402727122,1768847433008,-2361.31,0.00012294,2]
[402727123,1768847433018,-500.0,0.000123,2]
[402727124,1768847433028,-265.7,0.00012329,2]
[402727125,1768847433038,-221.42,0.00012329,2]
[402727126,1768847433048,-184.52,0.00012329,2]
[402727127,1768847433058,-153.76,0.00012329,2]
[402727128,1768847433068,-768.85,0.00012329,2]
[402727129,1768847433078,-500.0,0.00012437,2]
[402727130,1768847433087,-500.0,0.00012574,2]
[402727131,1768847433097,-500.0,0.00012711,2]
[402727132,1768847433106,-500.0,0.00012848,2]
[402727133,1768847433116,-60761.2024073,0.00012962,2]
[402727134,1768847433129,-1428.97879449,0.00012962,2]
[402727135,1768847433255,5000.0,9.675e-05,2]
[402727171,1768847438562,-292.6402069,9.696e-05,2]
[402727173,1768847438573,-345.31544414,0.00011696,2]